bitfinex/quotes_SOLUSD_20240814
["timestamp","ask_amount","ask_price","bid_price","bid_amount"]
[1723596726826,6.8273,146.47,146.43,6.829]
[1723596727024,46.23597493,146.5,146.43,6.829]
[1723596727025,6.8269,146.48,146.43,6.829]
[1723596727246,6.8269,146.48,146.4,35.859]
[1723596727247,6.8269,146.48,146.44,6.8287]
[1723596728458,6.8269,146.48,146.43,6.829]
[1723596728637,7.68690493,146.47,146.43,6.829]
[1723596729251,6.8274,146.47,146.43,6.829]
[1723596730546,6.827,146.48,146.43,6.829]
[1723596730752,6.95189,146.49,146.44,6.8286]
[1723596730964,52.20237,146.5,146.45,6.8279]
[1723596731251,6.8265,146.49,146.4,35.859]
[1723596731460,0.12549,146.47,146.4,15.859]
[1723596731652,6.8284,146.45,146.4,15.859]
[1723596731955,6.8278,146.46,146.41,6.8297]
[1723596732458,6.8278,146.46,146.42,6.8296]
[1723596732631,6.8274,146.47,146.42,6.8296]
[1723596733043,7.68740493,146.46,146.42,6.8296]
[1723596733247,0.85950493,146.45,146.41,6.8299]
[1723596733443,6.8279,146.46,146.42,6.8294]
[1723596733632,6.95279,146.47,146.42,6.8295]
[1723596734033,6.8279,146.46,146.42,6.8295]
[1723596734338,0.12549,146.47,146.41,6.83]
[1723596734539,45.12549,146.47,146.41,6.83]
[1723596734839,51.95329,146.47,146.42,6.8295]
[1723596736148,6.8278,146.46,146.41,6.8299]
[1723596737952,45.12549,146.47,146.4,6.8305]
[1723596738160,0.37647,146.46,146.36,15.3777]
[1723596738353,0.12549,146.45,146.38,6.8313]
[1723596738536,32.38499493,146.45,146.38,6.8313]
[1723596738866,0.37647,146.46,146.36,15.3777]
[1723596738867,0.25098,146.46,146.4,6.8305]
[1723596739048,6.8287,146.44,146.4,6.8305]
[1723596739370,6.8292,146.43,146.36,15.3777]
[1723596739539,6.8292,146.43,146.37,20.0]
[1723596740160,0.12549,146.44,146.35,6.8328]
[1723596740343,0.12549,146.44,146.32,22.51181199]
[1723596740344,22.5829,146.41,146.32,15.3777]
[1723596740549,6.8309,146.4,146.35,6.8325]
[1723596740739,22.5829,146.41,146.37,6.8318]
[1723596741248,29.4131,146.41,146.32,15.3777]
[1723596741459,29.4131,146.41,146.36,6.8323]
[1723596741636,0.85950493,146.4,146.36,6.8323]
[1723596741843,29.4131,146.41,146.36,6.8323]
[1723596742561,7.69010493,146.4,146.36,6.8323]
[1723596743065,22.5829,146.41,146.32,15.3777]
[1723596743271,22.5829,146.41,146.37,6.8319]
[1723596743477,29.4131,146.41,146.37,6.8319]
[1723596743772,22.5829,146.41,146.38,6.8313]
[1723596743939,45.25098,146.44,146.33,20.0]
[1723596743940,45.25098,146.44,146.39,6.831]
[1723596744146,6.8288,146.44,146.39,6.8309]
[1723596744347,6.8292,146.43,146.39,6.8309]
[1723596744856,6.8288,146.44,146.4,6.8304]
[1723596745039,76.64652978,146.49,146.41,8.19558414]
[1723596745367,6.8274,146.47,146.42,8.19531937]
[1723596745588,6.827,146.48,146.43,6.8289]
[1723596745878,6.8274,146.47,146.43,6.8289]
[1723596746088,6.8274,146.47,146.42,6.8295]
[1723596746953,6.8274,146.47,146.43,6.8291]
[1723596747169,6.8264,146.49,146.4,31.4]
[1723596747384,6.826,146.5,146.45,6.8279]
[1723596747652,6.4529,146.52,146.46,1.3652734]
[1723596747868,6.826,146.5,146.42,31.4]
[1723596748080,0.85950493,146.51,146.41,0.25098]
[1723596748269,6.4529,146.52,146.44,6.8285]
[1723596748270,6.8265,146.49,146.44,6.8285]
[1723596748947,6.8265,146.49,146.45,6.8282]
[1723596749153,6.8265,146.49,146.41,65.25098]
[1723596749356,0.85950493,146.51,146.43,6.8291]
[1723596749571,0.50196,146.5,146.43,6.8291]
[1723596750069,0.50196,146.5,146.43,6.829]
[1723596750468,6.827,146.48,146.44,6.8286]
[1723596750669,0.50196,146.5,146.45,6.8282]
[1723596750879,0.37647,146.5,146.45,6.8282]
[1723596751190,6.8258,146.51,146.46,8.19308696]
[1723596751361,6.8258,146.51,146.46,6.8276]
[1723596752491,6.8251,146.52,146.48,6.8268]
[1723596752661,6.8249,146.53,146.48,6.8268]
[1723596752862,6.825,146.52,146.48,6.8268]
[1723596753068,6.825,146.52,146.47,6.8272]
[1723596755763,6.8255,146.51,146.47,6.8272]
[1723596756063,0.12549,146.54,146.48,1.36525054]
[1723596756064,6.825,146.52,146.48,1.36525054]
[1723596756488,6.825,146.52,146.47,6.8272]
[1723596757056,6.825,146.52,146.48,6.8267]
[1723596757256,0.12549,146.55,146.49,8.19122646]
[1723596757462,45.50196,146.55,146.49,8.19122646]
[1723596757689,6.8236,146.55,146.51,6.8254]
[1723596758495,6.8236,146.55,146.52,1.36483293]
[1723596758699,6.8236,146.55,146.51,6.8254]
[1723596758990,6.8236,146.55,146.5,6.8258]
[1723596759789,6.8242,146.54,146.5,6.8258]
[1723596760959,6.8242,146.54,146.45,15.7832]
[1723596760960,6.8237,146.55,146.51,6.8254]
[1723596761494,6.8237,146.55,146.5,6.8258]
[1723596761863,6.824,146.54,146.5,6.8258]
[1723596762664,48.4545,146.59,146.5,6.8258]
[1723596762873,6.8237,146.55,146.51,6.8254]
[1723596763389,6.8237,146.55,146.5,6.8258]
[1723596763867,6.8242,146.54,146.5,6.8258]
[1723596764069,6.8237,146.55,146.5,6.8258]
[1723596764282,6.825,146.52,146.45,15.7832]
[1723596764485,6.8246,146.53,146.48,6.8264]
[1723596766496,6.8246,146.53,146.49,6.8263]
[1723596766998,6.8246,146.53,146.48,6.8267]
[1723596767901,6.8246,146.53,146.49,6.8263]
[1723596768563,6.8251,146.52,146.48,6.8267]
[1723596768796,7.68460493,146.52,146.48,6.8267]
[1723596769304,7.68460493,146.52,146.45,15.7832]
[1723596769305,6.8255,146.51,146.47,6.8272]
[1723596769469,7.68450493,146.52,146.47,6.8272]
[1723596769668,6.825,146.52,146.47,6.8272]
[1723596770093,6.8255,146.51,146.47,6.8272]
[1723596770781,6.826,146.5,146.45,15.7832]
[1723596770986,6.826,146.5,146.45,22.6111]
[1723596771494,6.8264,146.49,146.45,15.7832]
[1723596771671,6.8264,146.49,146.45,22.6111]
[1723596771872,6.826,146.5,146.45,22.6111]
[1723596772301,6.826,146.5,146.46,6.8277]
[1723596772795,6.8251,146.52,146.47,6.8271]
[1723596774198,6.8255,146.51,146.47,6.8271]
[1723596774811,12.54,146.51,146.45,6.8279]
[1723596774975,6.826,146.5,146.45,6.8279]
[1723596776103,6.826,146.5,146.46,6.8277]
[1723596776793,0.25098,146.52,146.46,6.8277]
[1723596777001,0.25098,146.51,146.48,6.8268]
[1723596777182,0.25098,146.51,146.47,6.8273]
[1723596777183,7.07648,146.51,146.47,6.8273]
[1723596779204,6.826,146.5,146.45,6.8278]
[1723596779588,6.826,146.5,146.46,6.8275]
[1723596779779,0.25098,146.51,146.43,12.54]
[1723596779780,21.9709,146.54,146.43,12.54]
[1723596780108,41.335,146.54,146.5,6.8258]
[1723596780285,6.8231,146.56,146.51,8.19017718]
[1723596780490,6.8231,146.56,146.48,1.36495428]
[1723596780799,6.8231,146.56,146.51,6.8253]
[1723596781007,6.8237,146.55,146.5,6.8258]
[1723596781203,6.8232,146.56,146.47,29.1346]
[1723596781505,15.1693,146.61,146.54,6.8239]
[1723596781707,12.54,146.58,146.49,12.54]
[1723596781922,6.8234,146.56,146.51,6.8253]
[1723596782210,32.18950493,146.59,146.52,6.8248]
[1723596782211,6.8227,146.57,146.52,6.8248]
[1723596782373,6.8227,146.57,146.53,6.8244]
[1723596782578,6.822,146.59,146.54,8.18863752]
[1723596782909,6.822,146.59,146.54,6.8239]
[1723596783092,6.8222,146.58,146.54,6.8239]
[1723596783296,6.8229,146.57,146.52,6.8246]
[1723596783497,6.8229,146.57,146.48,6.8267]
[1723596783498,0.85950493,146.56,146.48,6.8267]
[1723596783695,6.8231,146.56,146.51,6.8252]
[1723596784323,6.8231,146.56,146.52,6.8249]
[1723596784905,6.8231,146.56,146.51,6.8254]
[1723596785497,0.12549,146.59,146.52,6.8249]
[1723596785695,45.50196,146.59,146.52,6.8249]
[1723596785893,0.50196,146.59,146.53,6.8244]
[1723596786192,6.8223,146.58,146.53,6.8244]
[1723596786593,6.8223,146.58,146.54,6.824]
[1723596786801,15.1693,146.61,146.55,6.8232]
[1723596786988,6.8217,146.59,146.54,6.8239]
[1723596787195,45.37647,146.6,146.55,8.18809938]
[1723596787196,6.8213,146.6,146.55,8.18809938]
[1723596787410,6.8213,146.6,146.55,6.8235]
[1723596787715,17.0491,146.64,146.57,6.8225]
[1723596788006,6.8218,146.59,146.54,6.8237]
[1723596788210,6.8213,146.6,146.55,6.8233]
[1723596788411,6.8208,146.61,146.56,6.823]
[1723596788908,15.7017,146.65,146.54,31.45549]
[1723596789097,32.18950493,146.64,146.55,65.25098]
[1723596789294,6.8204,146.62,146.55,65.25098]
[1723596789697,6.8204,146.62,146.55,65.12549]
[1723596790012,6.8204,146.62,146.57,6.8223]
[1723596790196,6.8204,146.62,146.58,6.8222]
[1723596790520,6.8212,146.6,146.55,20.0]
[1723596790698,6.8204,146.62,146.56,1.36429387]
[1723596791023,31.33,146.64,146.54,20.0]
[1723596791197,32.31499493,146.63,146.56,6.8227]
[1723596791397,6.8208,146.61,146.57,6.8226]
[1723596791698,6.8199,146.63,146.58,8.18619681]
[1723596791897,15.7017,146.65,146.58,1.36429681]
[1723596792215,38.15165034,146.67,146.56,31.33]
[1723596792216,0.8248846,146.67,146.56,31.33]
[1723596792425,0.8248846,146.67,146.58,6.4786]
[1723596792722,0.8248846,146.67,146.59,20.0]
[1723596792911,0.8248846,146.67,146.61,6.8205]
[1723596793106,6.8188,146.66,146.61,6.8205]
[1723596793420,6.8191,146.65,146.6,6.8212]
[1723596794345,6.8204,146.62,146.57,22.6233]
[1723596794538,0.12549,146.63,146.54,6.4161]
[1723596794825,0.12549,146.63,146.57,6.8226]
[1723596794826,6.8204,146.62,146.57,6.8226]
[1723596794989,6.8204,146.62,146.58,6.8222]
[1723596795415,7.67990493,146.62,146.57,6.8225]
[1723596795607,6.8212,146.61,146.54,6.4161]
[1723596795808,52.19677,146.63,146.55,20.0]
[1723596796017,52.19677,146.63,146.57,6.8222]
[1723596796298,6.8204,146.62,146.57,6.8222]
[1723596796627,6.821,146.61,146.55,20.0]
[1723596796808,6.8204,146.62,146.57,6.8226]
[1723596797117,45.37647,146.63,146.59,6.8215]
[1723596797322,0.25098,146.63,146.59,6.8215]
[1723596797616,0.25098,146.63,146.54,13.24]
[1723596797617,1.11048493,146.63,146.54,13.24]
[1723596797822,31.33,146.6,146.54,6.8239]
[1723596798229,6.8217,146.59,146.55,6.8235]
[1723596798402,6.8217,146.59,146.54,6.8239]
[1723596798602,6.8217,146.59,146.55,6.8235]
[1723596799338,6.8222,146.58,146.51,6.3816]
[1723596799506,6.94729,146.59,146.51,6.3816]
[1723596799707,6.94729,146.59,146.54,6.8236]
[1723596799914,0.12549,146.61,146.57,6.8225]
[1723596800124,22.077,146.63,146.58,8.18646229]
[1723596800308,15.257,146.63,146.52,31.33]
[1723596800630,15.257,146.63,146.53,20.0]
[1723596800812,31.33,146.62,146.53,20.0]
[1723596800999,6.8217,146.59,146.54,6.8239]
[1723596803223,6.8222,146.58,146.54,6.8239]
[1723596803540,6.8227,146.57,146.52,6.8248]
[1723596803732,6.8232,146.56,146.52,6.8248]
[1723596804225,6.8232,146.56,146.51,6.8254]
[1723596804643,6.8232,146.56,146.52,6.8249]
[1723596805325,6.8227,146.57,146.52,6.8249]
[1723596805735,6.8232,146.56,146.51,6.8254]
[1723596805906,6.8236,146.55,146.5,23.0728]
[1723596806239,6.8231,146.56,146.51,6.8253]
[1723596807636,6.8227,146.57,146.52,6.8247]
[1723596809138,6.8231,146.56,146.52,6.8247]
[1723596809517,6.94729,146.59,146.54,6.8238]
[1723596809844,6.8222,146.58,146.54,6.8238]
[1723596810348,6.8227,146.57,146.53,6.8244]
[1723596810837,6.8231,146.56,146.51,6.8253]
[1723596811043,0.85950493,146.57,146.51,6.8253]
[1723596811339,6.8236,146.55,146.5,23.0728]
[1723596811540,6.8236,146.55,146.51,6.8253]
[1723596811742,6.8232,146.56,146.51,6.8253]
[1723596811924,0.12549,146.57,146.5,16.247]
[1723596812521,6.94819,146.57,146.52,6.8248]
[1723596812931,0.12549,146.57,146.5,16.247]
[1723596813141,6.8237,146.55,146.5,16.247]
[1723596813846,6.8232,146.56,146.51,6.8254]
[1723596814625,6.8232,146.56,146.52,6.8249]
[1723596815138,6.8237,146.55,146.5,16.247]
[1723596815336,0.12549,146.57,146.5,16.247]
[1723596815337,6.8231,146.56,146.5,16.247]
[1723596816937,6.8231,146.56,146.52,6.8249]
[1723596817462,6.8231,146.56,146.51,6.8253]
[1723596818046,0.85950493,146.55,146.47,6.0468]
[1723596818438,6.8242,146.54,146.49,6.8263]
[1723596818648,6.8242,146.54,146.46,16.0639]
[1723596818649,6.826,146.5,146.46,16.0639]
[1723596818941,6.826,146.5,146.45,6.8279]
[1723596819374,7.68600493,146.49,146.44,6.8286]
[1723596819560,6.8272,146.48,146.43,6.8288]
[1723596820245,6.8272,146.48,146.42,15.7347]
[1723596820246,0.12549,146.49,146.42,15.7347]
[1723596820428,38.28179,146.5,146.42,15.7347]
[1723596820639,31.33,146.5,146.42,15.7347]
[1723596820968,23.2152,146.51,146.46,6.8277]
[1723596822066,6.826,146.5,146.46,6.8277]
[1723596822242,23.2151,146.51,146.46,6.8277]
[1723596822436,6.95059,146.52,146.42,15.7347]
[1723596822658,6.8251,146.52,146.43,65.37647]
[1723596822848,6.8254,146.51,146.47,6.8272]
[1723596824841,6.8254,146.51,146.46,6.8276]
[1723596825942,0.12549,146.51,146.45,6.828]
[1723596826150,1.11048493,146.51,146.44,6.8286]
[1723596826769,6.8265,146.49,146.45,6.828]
[1723596826947,6.8259,146.5,146.45,6.828]
[1723596829177,7.68600493,146.49,146.44,6.8286]
[1723596829387,0.85950493,146.48,146.43,6.8291]
[1723596829675,7.68640493,146.48,146.43,6.8291]
[1723596829853,7.68640493,146.48,146.44,6.8287]
[1723596830053,6.8269,146.48,146.44,6.8287]
[1723596830775,0.85950493,146.47,146.44,6.8287]
[1723596830952,6.8269,146.48,146.44,6.8287]
[1723596832361,6.95189,146.49,146.44,6.8287]
[1723596834857,7.68640493,146.48,146.44,6.8287]
[1723596835051,6.8269,146.48,146.44,6.8287]
[1723596835279,6.8269,146.48,146.38,6.3461]
[1723596835280,0.12549,146.46,146.38,22.6431]
[1723596835479,6.95289,146.47,146.39,20.0]
[1723596835663,38.1569,146.48,146.43,6.8291]
[1723596836684,22.36309,146.49,146.39,20.0]
[1723596836859,6.95199,146.49,146.44,6.8285]
[1723596837980,6.95239,146.48,146.43,6.829]
[1723596838193,0.85950493,146.47,146.43,6.829]
[1723596838481,6.95239,146.48,146.44,6.8287]
[1723596839661,6.95239,146.48,146.43,6.8288]
[1723596839984,0.85950493,146.47,146.43,6.8288]
[1723596840185,7.68690493,146.47,146.43,6.8288]
[1723596840389,7.68690493,146.47,146.39,20.0]
[1723596840560,0.12549,146.45,146.38,22.6431]
[1723596840760,6.829,146.44,146.38,22.6431]
[1723596841390,6.95379,146.45,146.38,22.6431]
[1723596841755,0.12549,146.45,146.41,6.8296]
[1723596842176,31.33,146.46,146.42,6.8296]
[1723596842688,38.1578,146.46,146.42,6.8296]
[1723596843187,31.33,146.46,146.43,6.8291]
[1723596843579,6.6221,146.5,146.39,31.33]
[1723596843779,6.8266,146.49,146.44,6.8286]
[1723596843984,6.8268,146.48,146.44,6.8286]
[1723596845269,6.95199,146.49,146.44,6.8286]
[1723596846797,6.827,146.48,146.44,6.8286]
[1723596846968,7.68680493,146.47,146.39,20.0]
[1723596847293,32.18950493,146.47,146.41,6.8297]
[1723596847492,6.8279,146.46,146.41,6.8297]
[1723596847976,12.55,146.45,146.41,6.8297]
[1723596848386,13.40950493,146.45,146.41,6.8297]
[1723596848586,12.55,146.45,146.42,6.8295]
[1723596849404,12.55,146.45,146.41,6.8299]
[1723596849786,12.55,146.45,146.42,6.8296]
[1723596851401,12.55,146.45,146.41,6.83]
[1723596851585,0.85950493,146.44,146.4,6.8305]
[1723596851904,19.3783,146.45,146.4,6.8305]
[1723596852202,19.3783,146.45,146.41,6.83]
[1723596854679,0.85950493,146.44,146.4,6.8305]
[1723596855008,6.8288,146.44,146.4,6.8305]
[1723596855511,19.3783,146.45,146.4,6.8305]
[1723596856924,6.8288,146.44,146.4,6.8305]
[1723596858119,6.8288,146.44,146.35,12.55]
[1723596858120,6.8288,146.44,146.39,6.8309]
[1723596858515,6.8288,146.44,146.4,6.8305]
[1723596860628,7.68900493,146.43,146.38,6.8313]
[1723596860826,7.68910493,146.42,146.38,6.8313]
[1723596861038,6.8296,146.42,146.38,6.8313]
[1723596861907,19.3792,146.43,146.38,6.8313]
[1723596862327,6.8298,146.42,146.37,6.8318]
[1723596862625,19.3811,146.39,146.35,6.8325]
[1723596863720,6.8315,146.38,146.34,6.8332]
[1723596864028,19.3812,146.39,146.35,6.8328]
[1723596865915,0.85950493,146.38,146.35,6.8328]
[1723596866238,19.3812,146.39,146.35,6.8328]
[1723596867905,19.3812,146.39,146.34,6.8332]
[1723596867906,0.12549,146.38,146.34,6.8332]
[1723596868217,12.55,146.39,146.35,6.8329]
[1723596869233,19.3813,146.39,146.34,6.8332]
[1723596869733,6.8317,146.38,146.34,6.8332]
[1723596869924,6.95719,146.38,146.34,6.8332]
[1723596870127,0.85950493,146.37,146.34,6.8332]
[1723596870923,6.8324,146.36,146.32,6.8341]
[1723596871117,13.40950493,146.37,146.32,6.8341]
[1723596871118,0.85950493,146.35,146.32,6.8341]
[1723596871628,19.3821,146.37,146.32,6.8341]
[1723596871829,19.3821,146.37,146.33,6.8337]
[1723596872742,0.85950493,146.36,146.33,6.8337]
[1723596873526,0.12549,146.38,146.33,6.8335]
[1723596873735,0.85950493,146.37,146.33,6.8335]
[1723596874047,0.12549,146.34,146.25,12.55]
[1723596874343,0.12549,146.34,146.3,6.8348]
[1723596874531,0.12549,146.34,146.31,6.8347]
[1723596874737,19.3829,146.35,146.31,6.8347]
[1723596875044,19.7772725,146.4,146.25,12.55]
[1723596875045,12.55,146.4,146.33,6.8337]
[1723596875231,6.8321,146.37,146.32,6.8342]
[1723596875433,0.85950493,146.36,146.32,6.8342]
[1723596875946,6.8321,146.37,146.32,6.8342]
[1723596876124,6.8321,146.37,146.33,6.8336]
[1723596876323,19.3816,146.38,146.33,6.8336]
[1723596877330,52.20857,146.37,146.32,6.8342]
[1723596878140,19.3825,146.36,146.31,6.8346]
[1723596878850,6.8331,146.35,146.31,6.8346]
[1723596879225,6.8331,146.35,146.27,12.55]
[1723596879426,12.55,146.36,146.28,21.36690465]
[1723596879945,52.20887,146.37,146.29,1.36684586]
[1723596880148,52.20887,146.37,146.28,20.0]
[1723596880442,52.20887,146.37,146.29,1.36676081]
[1723596880646,52.20887,146.37,146.28,20.0]
[1723596880850,52.20887,146.37,146.33,6.8338]
[1723596881918,52.20887,146.37,146.32,6.8342]
[1723596883322,19.3825,146.36,146.32,6.8342]
[1723596883527,19.3825,146.36,146.31,6.8346]
[1723596885331,45.37647,146.37,146.33,6.8334]
[1723596885531,52.20847,146.37,146.33,6.8334]
[1723596885832,19.3826,146.36,146.31,6.8347]
[1723596886136,6.8338,146.33,146.28,6.8358]
[1723596886339,12.55,146.34,146.24,12.55]
[1723596886540,45.12549,146.37,146.26,12.55]
[1723596886737,12.80098,146.36,146.27,20.0]
[1723596887924,6.8332,146.35,146.31,6.8347]
[1723596888930,6.8335,146.34,146.3,6.8352]
[1723596889849,0.85950493,146.33,146.3,6.8352]
[1723596890039,7.69340493,146.33,146.29,6.8356]
[1723596890235,19.3834,146.34,146.29,6.8356]
[1723596892258,6.833,146.35,146.3,6.8352]
[1723596896042,6.8334,146.34,146.3,6.8352]
[1723596897936,17.0761,146.41,146.31,1.36692703]
[1723596898133,6.8324,146.36,146.3,12.55]
[1723596898361,6.8324,146.36,146.31,6.8344]
[1723596898536,6.833,146.35,146.31,6.8344]
[1723596899656,6.8335,146.34,146.3,6.8351]
[1723596899973,6.8335,146.34,146.29,6.8355]
[1723596900127,6.8335,146.34,146.3,6.8352]
[1723596900655,6.8335,146.34,146.25,28.9826]
[1723596900656,13.40950493,146.33,146.25,16.4326]
[1723596900966,7.69390493,146.32,146.25,16.4326]
[1723596902346,6.835,146.31,146.25,16.4326]
[1723596902533,12.55,146.33,146.28,6.836]
[1723596903043,6.8344,146.32,146.28,6.836]
[1723596904948,12.55,146.33,146.25,16.4326]
[1723596904949,19.3839,146.33,146.29,6.8356]
[1723596905853,7.69380493,146.32,146.28,6.8361]
[1723596906846,6.8349,146.31,146.27,6.8365]
[1723596907042,0.85950493,146.3,146.22,12.55]
[1723596907244,0.85950493,146.3,146.2,2.72741762]
[1723596907245,12.55,146.29,146.21,15.7238]
[1723596907473,7.69570493,146.28,146.24,6.838]
[1723596907649,25.9754,146.31,146.21,28.2738]
[1723596908052,25.9754,146.31,146.27,6.8366]
[1723596908251,6.5906,146.31,146.27,6.8366]
[1723596908456,13.4255,146.31,146.26,6.837]
[1723596908665,7.69480493,146.3,146.26,6.837]
[1723596908853,7.69530493,146.29,146.23,12.55]
[1723596909054,0.85950493,146.29,146.21,28.2738]
[1723596909262,25.9758,146.31,146.23,12.55]
[1723596909263,6.5906,146.31,146.23,12.55]
[1723596909480,13.4254,146.31,146.27,6.8363]
[1723596909872,7.69490493,146.3,146.26,6.837]
[1723596910087,0.85950493,146.29,146.26,6.837]
[1723596910250,6.8349,146.31,146.27,6.8364]
[1723596910757,7.69490493,146.3,146.22,77.80098]
[1723596911073,0.85950493,146.29,146.25,6.8371]
[1723596911575,7.69520493,146.29,146.25,6.8371]
[1723596912069,6.8357,146.29,146.25,6.8371]
[1723596912272,6.8353,146.3,146.26,6.837]
[1723596913768,6.8357,146.29,146.25,6.8375]
[1723596914502,6.8354,146.3,146.25,6.8375]
[1723596915067,6.8357,146.29,146.25,6.8375]
[1723596916357,0.25098,146.31,146.27,6.8366]
[1723596916558,7.08608,146.31,146.26,6.837]
[1723596916876,6.8353,146.3,146.26,6.837]
[1723596917065,6.8357,146.29,146.25,6.8374]
[1723596917265,0.85950493,146.28,146.25,6.8374]
[1723596917879,6.8357,146.29,146.25,6.8374]
[1723596918080,7.69580493,146.28,146.23,6.8383]
[1723596918288,6.8363,146.28,146.24,6.8379]
[1723596918582,6.96129,146.29,146.24,6.8379]
[1723596918778,6.8366,146.28,146.23,6.8385]
[1723596919582,0.12549,146.29,146.23,6.8385]
[1723596919789,6.8371,146.26,146.21,15.7238]
[1723596920284,6.96209,146.27,146.23,6.8385]
[1723596920464,0.12549,146.27,146.23,6.8385]
[1723596920786,6.96159,146.29,146.24,6.838]
[1723596921490,6.8363,146.28,146.21,15.7238]
[1723596922771,6.8363,146.28,146.23,6.8381]
[1723596923193,6.8363,146.28,146.24,6.8379]
[1723596924390,6.8354,146.3,146.22,12.55]
[1723596924774,6.8354,146.3,146.25,6.8374]
[1723596924962,6.8358,146.29,146.25,6.8374]
[1723596925488,0.25098,146.31,146.24,6.8379]
[1723596925673,0.12549,146.29,146.24,6.8379]
[1723596925877,45.25098,146.29,146.24,6.8379]
[1723596926590,0.12549,146.31,146.25,6.8374]
[1723596926886,45.37647,146.31,146.22,12.55]
[1723596927488,6.8358,146.29,146.24,6.8377]
[1723596927694,57.92647,146.31,146.24,6.8377]
[1723596927695,6.8363,146.28,146.24,6.8377]
[1723596928390,6.8362,146.28,146.23,6.8381]
[1723596928786,6.8362,146.28,146.23,6.8384]
[1723596929164,6.8368,146.27,146.23,6.8384]
[1723596929364,7.69670493,146.26,146.21,15.7238]
[1723596929658,6.8372,146.26,146.21,15.7238]
[1723596930393,0.12549,146.26,146.22,6.8386]
[1723596930965,6.96259,146.26,146.22,6.8386]
[1723596931674,0.12549,146.26,146.22,6.8386]
[1723596932268,6.35549,146.29,146.24,6.8379]
[1723596932470,0.12549,146.27,146.24,6.8379]
[1723596932672,0.12549,146.27,146.23,6.8384]
[1723596933393,0.25098,146.27,146.23,6.8384]
[1723596933694,7.08728,146.28,146.23,6.8384]
[1723596934073,7.08728,146.28,146.18,15.6647]
[1723596934074,16.0397,146.32,146.21,12.55]
[1723596934390,28.5897,146.32,146.21,12.55]
[1723596934610,6.8348,146.31,146.26,6.8369]
[1723596934783,6.8353,146.3,146.26,6.8369]
[1723596935500,6.96039,146.31,146.26,6.8369]
[1723596935792,0.12549,146.3,146.26,6.8369]
[1723596936877,0.25098,146.3,146.26,6.8369]
[1723596938270,22.8741,146.32,146.28,6.8361]
[1723596939475,12.55,146.34,146.25,12.55]
[1723596939673,12.55,146.34,146.3,6.8351]
[1723596939897,6.8334,146.34,146.25,12.55]
[1723596940085,21.4305,146.37,146.27,12.55]
[1723596940289,6.8315,146.38,146.34,6.8332]
[1723596940499,19.3815,146.38,146.34,6.8332]
[1723596940800,19.3815,146.38,146.33,6.8337]
[1723596941099,6.8312,146.39,146.34,6.8333]
[1723596941320,6.8315,146.38,146.33,6.8337]
[1723596942286,34.0171,146.4,146.34,6.8333]
[1723596942479,6.8314,146.39,146.34,6.8333]
[1723596942679,0.12549,146.39,146.29,27.8066]
[1723596942879,6.8323,146.37,146.32,6.8339]
[1723596943193,6.8325,146.36,146.32,6.8339]
[1723596943375,20.24200493,146.36,146.32,6.8339]
[1723596943583,19.3825,146.36,146.32,6.8339]
[1723596944100,0.85950493,146.35,146.29,15.2566]
[1723596944294,6.8335,146.34,146.29,22.0922]
[1723596944521,0.85950493,146.33,146.29,6.8356]
[1723596944877,13.40950493,146.32,146.25,16.0822]
[1723596945073,19.3853,146.3,146.21,28.6322]